fUSD/lending_fUSD_20250308
["ID","MTS","AMOUNT","RATE_DAILY","PERIOD"]
[355679108,1741453846719,-500.0,9.315e-05,2]
[355679110,1741453846731,-500.0,9.315e-05,2]
[355679112,1741453846743,-210.14093216,9.315e-05,2]
[355679113,1741453846755,-500.0,9.315e-05,2]
[355679114,1741453846767,-416.41013227,9.315e-05,2]
[355679115,1741453846779,-500.0,9.315e-05,2]
[355679116,1741453846791,-500.0,9.315e-05,2]
[355679117,1741453846807,-235.20268095,9.315e-05,2]
[355679118,1741453846819,-500.0,9.315e-05,2]
[355679119,1741453846831,-500.0,9.315e-05,2]
[355679120,1741453846842,-500.0,9.315e-05,2]
[355679121,1741453846854,-500.0,9.315e-05,2]
[355679122,1741453846866,-500.0,9.315e-05,2]
[355679123,1741453846878,-500.0,9.315e-05,2]
[355679124,1741453846890,-500.0,9.315e-05,2]
[355679125,1741453846902,-500.0,9.315e-05,2]
[355679126,1741453846914,-500.0,9.315e-05,2]
[355679127,1741453846926,-500.0,9.315e-05,2]
[355679128,1741453846937,-500.0,9.315e-05,2]
[355679129,1741453846949,-500.0,9.315e-05,2]
[355679130,1741453846960,-532.29,9.315e-05,2]
[355679131,1741453846972,-500.0,9.315e-05,2]
[355679132,1741453846984,-596.43,9.315e-05,2]
[355679133,1741453846995,-500.0,9.315e-05,2]
[355679134,1741453847007,-638.46,9.315e-05,2]
[355679135,1741453847018,-808.44,9.315e-05,2]
[355679136,1741453847030,-500.0,9.315e-05,2]
[355679137,1741453847041,-500.0,9.315e-05,2]
[355679138,1741453847053,-500.0,9.315e-05,2]
[355679139,1741453847064,-500.0,9.315e-05,2]
[355679140,1741453847075,-500.0,9.315e-05,2]
[355679141,1741453847088,-500.0,9.315e-05,2]
[355679142,1741453847099,-629.05,9.315e-05,2]
[355679143,1741453847111,-500.0,9.315e-05,2]
[355679144,1741453847122,-500.0,9.315e-05,2]
[355679145,1741453847133,-500.0,9.315e-05,2]
[355679146,1741453847145,-777.83,9.315e-05,2]
[355679147,1741453847161,-500.0,9.315e-05,2]
[355679148,1741453847175,-500.0,9.315e-05,2]
[355679149,1741453847188,-1066.67,9.315e-05,2]
[355679150,1741453847202,-500.0,9.315e-05,2]
[355679151,1741453847213,-500.0,9.315e-05,2]
[355679152,1741453847225,-500.0,9.315e-05,2]
[355679153,1741453847235,-500.0,9.315e-05,2]
[355679154,1741453847247,-500.0,9.315e-05,2]
[355679155,1741453847258,-500.0,9.315e-05,2]
[355679156,1741453847270,-500.0,9.315e-05,2]
[355679157,1741453847281,-500.0,9.315e-05,2]
[355679158,1741453847293,-512.07,9.315e-05,2]
[355679159,1741453847303,-500.0,9.315e-05,2]
[355679160,1741453847315,-735.83,9.315e-05,2]
[355679161,1741453847326,-500.0,9.315e-05,2]
[355679162,1741453847337,-500.0,9.315e-05,2]
[355679163,1741453847350,-500.0,9.315e-05,2]
[355679164,1741453847361,-500.0,9.315e-05,2]
[355679165,1741453847373,-500.0,9.315e-05,2]
[355679166,1741453847385,-167.27598078,9.353e-05,2]
[355679167,1741453847396,-11100.0,9.5e-05,3]
[355679168,1741453847407,-150.0,9.562e-05,7]
[355679169,1741453847418,-167.27598078,9.569e-05,2]
[355679170,1741453847430,-685.36,9.586e-05,2]
[355679171,1741453847441,-654.12,9.586e-05,2]
[355679172,1741453847452,-500.0,9.586e-05,2]
[355679173,1741453847467,-894.75,9.586e-05,2]
[355679174,1741453847478,-1217.68,9.586e-05,2]
[355679175,1741453847489,-1614.77,9.586e-05,2]
[355679176,1741453847502,-1732.58,9.586e-05,2]
[355679177,1741453847514,-567.3,9.586e-05,2]
[355679178,1741453847527,-1226.62,9.586e-05,2]
[355679179,1741453847540,-709.87,9.586e-05,2]
[355679180,1741453847552,-500.0,9.586e-05,2]
[355679181,1741453847565,-1864.88,9.586e-05,2]
[355679182,1741453847576,-1545.59,9.586e-05,2]
[355679183,1741453847588,-1325.21,9.586e-05,2]
[355679184,1741453847600,-723.05,9.586e-05,2]
[355679185,1741453847612,-792.36,9.586e-05,2]
[355679186,1741453847623,-1676.41,9.586e-05,2]
[355679187,1741453847635,-8002.52,9.586e-05,2]
[355679188,1741453847646,-847.21,9.586e-05,2]
[355679189,1741453847657,-500.0,9.586e-05,2]
[355679190,1741453847668,-1089.26,9.586e-05,2]
[355679191,1741453847679,-709.15,9.586e-05,2]
[355679192,1741453847691,-500.0,9.586e-05,2]
[355679193,1741453847702,-500.0,9.586e-05,2]
[355679194,1741453847714,-808.81,9.586e-05,2]
[355679195,1741453847725,-5301.31,9.586e-05,2]
[355679196,1741453847737,-500.0,9.586e-05,2]
[355679197,1741453847748,-528.4,9.586e-05,2]
[355679198,1741453847759,-720.32,9.586e-05,2]
[355679199,1741453847771,-500.0,9.586e-05,2]
[355679200,1741453847783,-672.48,9.587e-05,2]
[355679201,1741453847795,-500.0,9.587e-05,2]
[355679202,1741453847806,-389.47090855,9.587e-05,2]
[355679203,1741453847818,-500.0,9.587e-05,2]
[355679204,1741453847830,-500.0,9.587e-05,2]
[355679205,1741453847841,-500.0,9.587e-05,2]
[355679206,1741453847852,-500.0,9.587e-05,2]
[355679207,1741453847863,-500.0,9.587e-05,2]
[355679208,1741453847874,-500.0,9.587e-05,2]
[355679209,1741453847885,-500.0,9.587e-05,2]
[355679210,1741453847896,-500.0,9.587e-05,2]
[355679211,1741453847908,-500.0,9.587e-05,2]
[355679212,1741453847919,-500.0,9.587e-05,2]
[355679213,1741453847930,-500.0,9.587e-05,2]
[355679214,1741453847941,-612.56054885,9.587e-05,2]
[355679215,1741453847952,-500.0,9.587e-05,2]
[355679216,1741453847963,-500.0,9.587e-05,2]
[355679217,1741453847975,-500.0,9.587e-05,2]
[355679218,1741453847986,-500.0,9.587e-05,2]
[355679219,1741453847997,-500.0,9.587e-05,2]
[355679220,1741453848008,-500.0,9.587e-05,2]
[355679221,1741453848020,-500.0,9.587e-05,2]
[355679222,1741453848031,-500.0,9.587e-05,2]
[355679223,1741453848043,-500.0,9.587e-05,2]
[355679224,1741453848055,-500.0,9.587e-05,2]
[355679225,1741453848064,-536.70492808,9.587e-05,2]
[355679226,1741453848074,-500.0,9.587e-05,2]
[355679227,1741453848083,-500.0,9.587e-05,2]
[355679228,1741453848092,-500.0,9.587e-05,2]
[355679229,1741453848102,-500.0,9.587e-05,2]
[355679230,1741453848111,-333.878102,9.587e-05,2]
[355679231,1741453848121,-518.65,9.587e-05,2]
[355679232,1741453848130,-500.0,9.587e-05,2]
[355679233,1741453848140,-645.07361262,9.587e-05,2]
[355679234,1741453848149,-500.0,9.587e-05,2]
[355679235,1741453848159,-500.0,9.587e-05,2]
[355679236,1741453848169,-500.0,9.587e-05,2]
[355679237,1741453848179,-672.41,9.587e-05,2]
[355679238,1741453848189,-500.0,9.587e-05,2]
[355679239,1741453848198,-500.0,9.587e-05,2]
[355679240,1741453848208,-500.0,9.587e-05,2]
[355679241,1741453848217,-545.23,9.587e-05,2]
[355679242,1741453848228,-223.137457,9.587e-05,2]
[355679243,1741453848238,-633.61,9.587e-05,2]
[355679244,1741453848247,-500.0,9.587e-05,2]
[355679245,1741453848256,-500.0,9.587e-05,2]
[355679246,1741453848266,-534.47,9.587e-05,2]
[355679247,1741453848275,-500.0,9.587e-05,2]
[355679248,1741453848285,-500.0,9.587e-05,2]
[355679249,1741453848295,-521.59,9.587e-05,2]
[355679250,1741453848305,-500.0,9.587e-05,2]
[355679251,1741453848314,-500.0,9.587e-05,2]
[355679252,1741453848323,-500.0,9.587e-05,2]
[355679253,1741453848332,-500.0,9.587e-05,2]
[355679254,1741453848660,-535.14,9.587e-05,2]
[355679255,1741453848688,-678.48,9.587e-05,2]
[355679256,1741453848707,-500.0,9.587e-05,2]
[355679257,1741453848719,-500.0,9.587e-05,2]
[355679258,1741453848729,-500.0,9.587e-05,2]
[355679259,1741453848740,-500.0,9.587e-05,2]
[355679260,1741453848750,-633.5,9.587e-05,2]
[355679261,1741453848759,-500.0,9.587e-05,2]
[355679262,1741453848768,-500.0,9.587e-05,2]
[355679263,1741453848778,-398.08529127,9.587e-05,2]
[355679264,1741453848788,-500.0,9.587e-05,2]
[355679265,1741453848797,-900.83,9.587e-05,2]
[355679266,1741453848807,-500.0,9.587e-05,2]
[355679267,1741453848817,-786.48,9.587e-05,2]
[355679268,1741453848827,-761.12,9.587e-05,2]
[355679269,1741453848837,-1023.98,9.587e-05,2]
[355679270,1741453848846,-2799.77,9.587e-05,2]
[355679271,1741453848856,-620.31,9.587e-05,2]
[355679272,1741453848865,-1580.42,9.587e-05,2]
[355679273,1741453848875,-562.71,9.587e-05,2]
[355679274,1741453848885,-657.52,9.587e-05,2]
[355679275,1741453848894,-500.0,9.587e-05,2]
[355679276,1741453848906,-500.0,9.587e-05,2]
[355679277,1741453848916,-1069.06,9.587e-05,2]
[355679278,1741453848926,-1021.68,9.587e-05,2]
[355679279,1741453848935,-1189.79,9.587e-05,2]
[355679280,1741453848945,-500.0,9.587e-05,2]
[355679281,1741453848955,-649.1,9.587e-05,2]
[355679282,1741453848965,-500.0,9.587e-05,2]
[355679283,1741453848975,-1338.55,9.587e-05,2]
[355679284,1741453848987,-500.0,9.587e-05,2]
[355679285,1741453848996,-2321.0,9.587e-05,2]
[355679286,1741453849006,-984.69,9.587e-05,2]
[355679287,1741453849016,-1354.3,9.587e-05,2]
[355679288,1741453849026,-500.0,9.587e-05,2]
[355679289,1741453849035,-905.71,9.587e-05,2]
[355679290,1741453849046,-781.8,9.587e-05,2]
[355679291,1741453849055,-524.68,9.587e-05,2]
[355679292,1741453849065,-1064.34,9.587e-05,2]
[355679293,1741453849074,-500.0,9.587e-05,2]
[355679294,1741453849084,-929.48,9.587e-05,2]
[355679295,1741453849095,-721.51,9.587e-05,2]
[355679296,1741453849105,-755.72,9.587e-05,2]
[355679297,1741453849115,-500.0,9.587e-05,2]
[355679298,1741453849124,-1991.52,9.587e-05,2]
[355679299,1741453849134,-500.0,9.587e-05,2]
[355679300,1741453849143,-1553.14,9.587e-05,2]
[355679301,1741453849153,-500.0,9.587e-05,2]
[355679302,1741453849163,-500.0,9.587e-05,2]
[355679303,1741453849172,-839.53,9.587e-05,2]
[355679304,1741453849182,-1253.61,9.587e-05,2]
[355679305,1741453849191,-500.0,9.587e-05,2]
[355679306,1741453849201,-3439.22,9.587e-05,2]
[355679307,1741453849210,-1673.6,9.587e-05,2]
[355679308,1741453849221,-500.0,9.587e-05,2]
[355679309,1741453849231,-1134.37,9.587e-05,2]
[355679310,1741453849241,-739.92,9.587e-05,2]
[355679311,1741453849251,-500.0,9.587e-05,2]
[355679312,1741453849261,-1268.92,9.587e-05,2]
[355679313,1741453849271,-500.0,9.587e-05,2]
[355679314,1741453849280,-3362.2,9.587e-05,2]
[355679315,1741453849290,-500.0,9.587e-05,2]
[355679316,1741453849299,-500.0,9.587e-05,2]
[355679317,1741453849309,-3879.98,9.587e-05,2]
[355679318,1741453849319,-500.0,9.587e-05,2]
[355679319,1741453849328,-500.0,9.587e-05,2]
[355679320,1741453849337,-516.45907688,9.587e-05,2]
[355679321,1741453849346,-513.49,9.587e-05,2]
[355679322,1741453849355,-500.0,9.587e-05,2]
[355679323,1741453849365,-1524.83,9.587e-05,2]
[355679324,1741453849374,-500.0,9.587e-05,2]
[355679325,1741453849384,-1012.38,9.587e-05,2]
[355679326,1741453849393,-6735.65,9.587e-05,2]
[355679327,1741453849403,-500.0,9.587e-05,2]
[355679328,1741453849412,-500.0,9.587e-05,2]
[355679329,1741453849421,-966.05,9.587e-05,2]
[355679330,1741453849430,-1587.25,9.587e-05,2]
[355679331,1741453849441,-500.0,9.587e-05,2]
[355679332,1741453849450,-1017.04,9.587e-05,2]
[355679333,1741453849460,-1417.73,9.587e-05,2]
[355679334,1741453849473,-500.0,9.587e-05,2]
[355679335,1741453849483,-500.0,9.587e-05,2]
[355679336,1741453849493,-1252.19,9.587e-05,2]
[355679337,1741453849502,-1555.49,9.587e-05,2]
[355679338,1741453849511,-500.0,9.587e-05,2]
[355679339,1741453849521,-3002.6,9.587e-05,2]
[355679340,1741453849530,-530.38485623,9.587e-05,2]
[355679341,1741453849540,-1751.26,9.587e-05,2]
[355679342,1741453849549,-3334.13,9.587e-05,2]
[355679343,1741453849558,-500.0,9.587e-05,2]
[355679344,1741453849568,-1713.67,9.587e-05,2]
[355679345,1741453849578,-500.0,9.587e-05,2]
[355679346,1741453849588,-3070.74,9.587e-05,2]
[355679347,1741453849597,-356.51657022,9.587e-05,2]
[355679348,1741453849607,-1254.52,9.587e-05,2]
[355679349,1741453849616,-500.0,9.587e-05,2]
[355679350,1741453849626,-500.0,9.587e-05,2]
[355679351,1741453849635,-14869.67,9.587e-05,2]
[355679352,1741453849645,-3529.24,9.587e-05,2]
[355679353,1741453849655,-500.0,9.587e-05,2]
[355679354,1741453849664,-500.0,9.587e-05,2]
[355679355,1741453849673,-1512.21,9.587e-05,2]
[355679356,1741453849683,-2827.44,9.587e-05,2]
[355679357,1741453849692,-500.0,9.587e-05,2]
[355679358,1741453849702,-1098.91,9.587e-05,2]
[355679359,1741453849712,-2052.5,9.588e-05,2]
[355679360,1741453849721,-11068.73,9.588e-05,2]
[355679361,1741453849731,-500.0,9.588e-05,2]
[355679362,1741453849740,-1143.98,9.588e-05,2]
[355679363,1741453849750,-500.0,9.588e-05,2]
[355679364,1741453849759,-905.28,9.588e-05,2]
[355679365,1741453849768,-1906.03,9.588e-05,2]
[355679366,1741453849778,-1000.0,9.588e-05,2]
[355679367,1741453849787,-2635.52,9.588e-05,2]
[355679368,1741453849796,-2039.51,9.588e-05,2]
[355679369,1741453849805,-1471.47,9.588e-05,2]
[355679370,1741453849814,-996.34,9.588e-05,2]
[355679371,1741453849824,-462.91681813,9.588e-05,2]
[355679372,1741453849833,-1972.13,9.588e-05,2]
[355679373,1741453849843,-3510.88,9.588e-05,2]
[355679374,1741453849852,-386.13249952,9.589e-05,2]
[355679375,1741453849861,-267.63123561,9.589e-05,2]
[355679376,1741453849871,-500.0,9.589e-05,2]
[355679377,1741453849880,-500.0,9.589e-05,2]
[355679378,1741453849889,-500.0,9.589e-05,2]
[355679379,1741453849899,-500.0,9.589e-05,2]
[355679380,1741453849908,-500.0,9.589e-05,2]
[355679381,1741453849924,-500.0,9.589e-05,2]
[355679382,1741453849934,-500.0,9.589e-05,2]
[355679383,1741453849943,-500.0,9.589e-05,2]
[355679384,1741453849953,-500.0,9.589e-05,2]
[355679385,1741453849962,-500.0,9.589e-05,2]
[355679386,1741453849972,-500.0,9.589e-05,2]
[355679387,1741453849981,-500.0,9.589e-05,2]
[355679388,1741453849990,-500.0,9.589e-05,2]
[355679389,1741453850000,-500.0,9.589e-05,2]
[355679390,1741453850010,-532.29,9.589e-05,2]
[355679391,1741453850019,-500.0,9.589e-05,2]
[355679392,1741453850028,-500.0,9.589e-05,2]
[355679393,1741453850038,-596.43,9.589e-05,2]
[355679394,1741453850047,-500.0,9.589e-05,2]
[355679395,1741453850056,-638.46,9.589e-05,2]
[355679396,1741453850066,-808.44,9.589e-05,2]
[355679397,1741453850075,-500.0,9.589e-05,2]
[355679398,1741453850084,-500.0,9.589e-05,2]
[355679399,1741453850094,-500.0,9.589e-05,2]
[355679400,1741453850103,-500.0,9.589e-05,2]
[355679401,1741453850113,-500.0,9.589e-05,2]
[355679402,1741453850123,-500.0,9.589e-05,2]
[355679403,1741453850132,-629.05,9.589e-05,2]
[355679404,1741453850141,-500.0,9.589e-05,2]
[355679405,1741453850151,-500.0,9.589e-05,2]
[355679406,1741453850160,-500.0,9.589e-05,2]
[355679407,1741453850169,-777.83,9.589e-05,2]
[355679408,1741453850179,-500.0,9.589e-05,2]
[355679409,1741453850189,-500.0,9.589e-05,2]
[355679410,1741453850198,-1066.67,9.589e-05,2]
[355679411,1741453850208,-500.0,9.589e-05,2]
[355679412,1741453850218,-500.0,9.589e-05,2]
[355679413,1741453850227,-500.0,9.589e-05,2]
[355679414,1741453850236,-500.0,9.589e-05,2]
[355679415,1741453850246,-500.0,9.589e-05,2]
[355679416,1741453850255,-500.0,9.589e-05,2]
[355679417,1741453850264,-500.0,9.589e-05,2]
[355679418,1741453850274,-500.0,9.589e-05,2]
[355679419,1741453850284,-512.07,9.589e-05,2]
[355679420,1741453850293,-500.0,9.589e-05,2]
[355679421,1741453850302,-735.83,9.589e-05,2]
[355679422,1741453850311,-500.0,9.589e-05,2]
[355679423,1741453850320,-500.0,9.589e-05,2]
[355679424,1741453850330,-500.0,9.589e-05,2]
[355679425,1741453850339,-500.0,9.589e-05,2]
[355679426,1741453850348,-500.0,9.589e-05,2]
[355679427,1741453850357,-165.11,9.589e-05,2]
[355679428,1741453850367,-14800.0,9.6e-05,3]
[355679429,1741453850375,-18500.0,9.7e-05,3]
[355679430,1741453850385,-1000.0,9.7e-05,2]
[355679431,1741453850395,-3649.939,9.706e-05,2]
[355679432,1741453850404,-168.376,9.714e-05,2]
[355679433,1741453850413,-10478.85853417,9.741e-05,2]
[355679434,1741453850423,-167.27598078,9.784e-05,2]
[355679435,1741453850432,-3700.0,9.8e-05,3]
[355679436,1741453850441,-1323.0,9.8e-05,2]
[355679437,1741453850451,-197.11,9.842e-05,2]
[355679438,1741453850460,-685.36,9.86e-05,2]
[355679439,1741453850475,-654.12,9.86e-05,2]
[355679440,1741453850484,-500.0,9.86e-05,2]
[355679441,1741453850493,-894.75,9.86e-05,2]
[355679442,1741453850502,-1217.68,9.86e-05,2]
[355679443,1741453850514,-1614.77,9.86e-05,2]
[355679444,1741453850523,-1732.58,9.86e-05,2]
[355679445,1741453850533,-567.3,9.86e-05,2]
[355679446,1741453850542,-1226.62,9.86e-05,2]
[355679447,1741453850552,-709.87,9.86e-05,2]
[355679448,1741453850561,-500.0,9.86e-05,2]
[355679449,1741453850571,-1864.88,9.86e-05,2]
[355679450,1741453850580,-1545.59,9.86e-05,2]
[355679451,1741453850589,-1325.21,9.86e-05,2]
[355679452,1741453850598,-723.05,9.86e-05,2]
[355679453,1741453850607,-792.36,9.86e-05,2]
[355679454,1741453850616,-1676.41,9.86e-05,2]
[355679455,1741453850626,-8002.52,9.86e-05,2]
[355679456,1741453850635,-847.21,9.86e-05,2]
[355679457,1741453850644,-500.0,9.86e-05,2]
[355679458,1741453850653,-1089.26,9.86e-05,2]
[355679459,1741453850663,-709.15,9.86e-05,2]
[355679460,1741453850672,-500.0,9.86e-05,2]
[355679461,1741453850681,-500.0,9.86e-05,2]
[355679462,1741453850691,-808.81,9.86e-05,2]
[355679463,1741453850700,-5301.31,9.86e-05,2]
[355679464,1741453850710,-500.0,9.86e-05,2]
[355679465,1741453850719,-528.4,9.86e-05,2]
[355679466,1741453850729,-720.32,9.86e-05,2]
[355679467,1741453850739,-500.0,9.86e-05,2]
[355679468,1741453850749,-672.48,9.861e-05,2]
[355679469,1741453850758,-500.0,9.861e-05,2]
[355679470,1741453850768,-500.0,9.861e-05,2]
[355679471,1741453850777,-500.0,9.861e-05,2]
[355679472,1741453850787,-500.0,9.861e-05,2]
[355679473,1741453850796,-500.0,9.861e-05,2]
[355679474,1741453850806,-500.0,9.861e-05,2]
[355679475,1741453850815,-500.0,9.861e-05,2]
[355679476,1741453850824,-335.75129593,9.861e-05,2]
[355679477,1741453850834,-500.0,9.861e-05,2]
[355679478,1741453850843,-500.0,9.861e-05,2]
[355679479,1741453850852,-500.0,9.861e-05,2]
[355679480,1741453850861,-500.0,9.861e-05,2]
[355679481,1741453850871,-500.0,9.861e-05,2]
[355679482,1741453850880,-500.0,9.861e-05,2]
[355679483,1741453850889,-500.0,9.861e-05,2]
[355679484,1741453850898,-500.0,9.861e-05,2]
[355679485,1741453850907,-500.0,9.861e-05,2]
[355679486,1741453850917,-500.0,9.861e-05,2]
[355679487,1741453850926,-500.0,9.861e-05,2]
[355679488,1741453850936,-649.53817386,9.861e-05,2]
[355679489,1741453850945,-500.0,9.861e-05,2]
[355679490,1741453850955,-500.0,9.861e-05,2]
[355679491,1741453850964,-500.0,9.861e-05,2]
[355679492,1741453850973,-500.0,9.861e-05,2]
[355679493,1741453850982,-559.54800927,9.861e-05,2]
[355679494,1741453850991,-500.0,9.861e-05,2]
[355679495,1741453851002,-333.878102,9.861e-05,2]
[355679496,1741453851011,-518.65,9.861e-05,2]
[355679497,1741453851021,-500.0,9.861e-05,2]
[355679498,1741453851030,-500.0,9.861e-05,2]
[355679499,1741453851039,-500.0,9.861e-05,2]
[355679500,1741453851048,-500.0,9.861e-05,2]
[355679501,1741453851058,-672.41,9.861e-05,2]
[355679502,1741453851067,-500.0,9.861e-05,2]
[355679503,1741453851075,-337.003759,9.861e-05,2]
[355679504,1741453851085,-500.0,9.861e-05,2]
[355679505,1741453851094,-545.23,9.861e-05,2]
[355679506,1741453851103,-223.137457,9.861e-05,2]
[355679507,1741453851112,-633.61,9.861e-05,2]
[355679508,1741453851121,-500.0,9.861e-05,2]
[355679509,1741453851131,-500.0,9.861e-05,2]
[355679510,1741453851140,-534.47,9.861e-05,2]
[355679511,1741453851150,-500.0,9.861e-05,2]
[355679512,1741453851159,-500.0,9.861e-05,2]
[355679513,1741453851169,-521.59,9.861e-05,2]
[355679514,1741453851178,-500.0,9.861e-05,2]
[355679515,1741453851187,-500.0,9.861e-05,2]
[355679516,1741453851196,-500.0,9.861e-05,2]
[355679517,1741453851206,-500.0,9.861e-05,2]
[355679518,1741453851215,-535.14,9.861e-05,2]
[355679519,1741453851224,-678.48,9.861e-05,2]
[355679520,1741453851234,-500.0,9.861e-05,2]
[355679521,1741453851244,-500.0,9.861e-05,2]
[355679522,1741453851253,-500.0,9.861e-05,2]
[355679523,1741453851263,-605.5468592,9.861e-05,2]
[355679524,1741453851272,-633.5,9.861e-05,2]
[355679525,1741453851282,-500.0,9.861e-05,2]
[355679526,1741453851291,-500.0,9.861e-05,2]
[355679527,1741453851300,-500.0,9.861e-05,2]
[355679528,1741453851309,-900.83,9.861e-05,2]
[355679529,1741453851318,-500.0,9.861e-05,2]
[355679530,1741453851327,-786.48,9.861e-05,2]
[355679531,1741453851337,-761.12,9.861e-05,2]
[355679532,1741453851346,-1023.98,9.861e-05,2]
[355679533,1741453851356,-2799.77,9.861e-05,2]
[355679534,1741453851365,-620.31,9.861e-05,2]
[355679535,1741453851374,-1580.42,9.861e-05,2]
[355679536,1741453851384,-562.71,9.861e-05,2]
[355679537,1741453851393,-657.52,9.861e-05,2]
[355679538,1741453851402,-500.0,9.861e-05,2]
[355679539,1741453851411,-500.0,9.861e-05,2]
[355679540,1741453851421,-1069.06,9.861e-05,2]
[355679541,1741453851431,-1021.68,9.861e-05,2]
[355679542,1741453851440,-1189.79,9.861e-05,2]
[355679543,1741453851450,-500.0,9.861e-05,2]
[355679544,1741453851459,-649.1,9.861e-05,2]
[355679545,1741453851472,-500.0,9.861e-05,2]
[355679546,1741453851482,-1338.55,9.861e-05,2]
[355679547,1741453851491,-500.0,9.861e-05,2]
[355679548,1741453851501,-2321.0,9.861e-05,2]
[355679549,1741453851510,-984.69,9.861e-05,2]
[355679550,1741453851521,-1354.3,9.861e-05,2]
[355679551,1741453851530,-500.0,9.861e-05,2]
[355679552,1741453851540,-905.71,9.861e-05,2]
[355679553,1741453851551,-781.8,9.861e-05,2]
[355679554,1741453851561,-524.68,9.861e-05,2]
[355679555,1741453851571,-1064.34,9.861e-05,2]
[355679556,1741453851580,-500.0,9.861e-05,2]
[355679557,1741453851590,-929.48,9.861e-05,2]
[355679558,1741453851599,-721.51,9.861e-05,2]
[355679559,1741453851608,-755.72,9.861e-05,2]
[355679560,1741453851618,-500.0,9.861e-05,2]
[355679561,1741453851627,-1991.52,9.861e-05,2]
[355679562,1741453851636,-500.0,9.861e-05,2]
[355679563,1741453851646,-1553.14,9.861e-05,2]
[355679564,1741453851655,-500.0,9.861e-05,2]
[355679565,1741453851664,-500.0,9.861e-05,2]
[355679566,1741453851674,-839.53,9.861e-05,2]
[355679567,1741453851683,-1253.61,9.861e-05,2]
[355679568,1741453851693,-500.0,9.861e-05,2]
[355679569,1741453851702,-3439.22,9.861e-05,2]
[355679570,1741453851711,-1673.6,9.861e-05,2]
[355679571,1741453851721,-500.0,9.861e-05,2]
[355679572,1741453851894,-1134.37,9.861e-05,2]
[355679573,1741453851905,-739.92,9.861e-05,2]
[355679574,1741453851915,-500.0,9.861e-05,2]
[355679575,1741453851924,-1268.92,9.861e-05,2]
[355679576,1741453851933,-500.0,9.861e-05,2]
[355679577,1741453851943,-3362.2,9.861e-05,2]
[355679578,1741453851952,-500.0,9.861e-05,2]
[355679579,1741453851961,-500.0,9.861e-05,2]
[355679580,1741453851971,-3879.98,9.861e-05,2]
[355679581,1741453851980,-500.0,9.861e-05,2]
[355679582,1741453851990,-500.0,9.861e-05,2]
[355679583,1741453851999,-513.49,9.861e-05,2]
[355679584,1741453852008,-500.0,9.861e-05,2]
[355679585,1741453852017,-1524.83,9.861e-05,2]
[355679586,1741453852027,-500.0,9.861e-05,2]
[355679587,1741453852037,-1012.38,9.861e-05,2]
[355679588,1741453852047,-6735.65,9.861e-05,2]
[355679589,1741453852058,-574.41061837,9.861e-05,2]
[355679590,1741453852068,-500.0,9.861e-05,2]
[355679591,1741453852077,-966.05,9.861e-05,2]
[355679592,1741453852087,-1587.25,9.861e-05,2]
[355679593,1741453852099,-500.0,9.861e-05,2]
[355679594,1741453852109,-1017.04,9.861e-05,2]
[355679595,1741453852120,-1417.73,9.861e-05,2]
[355679596,1741453852130,-500.0,9.861e-05,2]
[355679597,1741453852140,-500.0,9.861e-05,2]
[355679598,1741453852152,-1252.19,9.861e-05,2]
[355679599,1741453852162,-1555.49,9.861e-05,2]
[355679600,1741453852173,-500.0,9.861e-05,2]
[355679601,1741453852186,-3002.6,9.861e-05,2]
[355679602,1741453852195,-1751.26,9.861e-05,2]
[355679603,1741453852204,-3334.13,9.861e-05,2]
[355679604,1741453852215,-500.0,9.861e-05,2]
[355679605,1741453852224,-1713.67,9.861e-05,2]
[355679606,1741453852234,-500.0,9.861e-05,2]
[355679607,1741453852243,-3070.74,9.861e-05,2]
[355679608,1741453852253,-1254.52,9.861e-05,2]
[355679609,1741453852267,-500.0,9.861e-05,2]